bitfinex-derivatives/quotes_BTCF0:USTF0_20251118
["timestamp","ask_amount","ask_price","bid_price","bid_amount"]
[1763494435174,0.40577,93356.0,93355.0,0.0424]
[1763494435369,0.40577,93356.0,93355.0,0.1495849]
[1763494435873,0.01274,93366.0,93365.0,0.0424]
[1763494435874,0.05771,93366.0,93365.0,0.0424]
[1763494436074,0.30313,93366.0,93365.0,0.0424]
[1763494436274,0.30317,93366.0,93365.0,0.0424]
[1763494440079,0.04497,93366.0,93365.0,0.0424]
[1763494440384,0.30317,93366.0,93365.0,0.0424]
[1763494440574,0.10733255,93367.0,93366.0,0.05628]
[1763494440880,0.00016065,93367.0,93366.0,0.05628]
[1763494441083,0.04563,93357.0,93356.0,0.15782294]
[1763494441277,0.02272,93357.0,93356.0,0.04295]
[1763494441479,0.1528064,93363.0,93362.0,0.04295]
[1763494443493,0.04563,93361.0,93360.0,0.00219803]
[1763494443981,0.04563,93361.0,93360.0,0.04514803]
[1763494444582,0.04563,93361.0,93360.0,0.02400803]
[1763494445388,0.1528218,93349.0,93348.0,0.02197065]
[1763494445988,0.1528218,93349.0,93348.0,0.04311065]
[1763494446985,0.1528218,93349.0,93348.0,0.00016065]
[1763494447790,0.1528299,93342.0,93332.0,0.3608]
[1763494448090,0.4109899,93342.0,93340.0,0.00219803]
[1763494448978,0.4109899,93342.0,93332.0,0.3608]
[1763494449173,0.1072102,93335.0,93334.0,0.1290187]
[1763494449382,0.1528402,93335.0,93334.0,0.04295]
[1763494450089,0.04563,93333.0,93332.0,0.3608]
[1763494450289,0.04563,93331.0,93330.0,0.04514803]
[1763494451484,0.02272,93331.0,93330.0,0.04514803]
[1763494451686,0.04571356,93333.0,93332.0,0.04295]
[1763494452690,8.356e-05,93333.0,93332.0,0.40375]
[1763494453690,0.00016065,93344.0,93343.0,0.1501487]
[1763494454187,0.04579065,93344.0,93343.0,0.1501487]
[1763494454592,0.04579065,93344.0,93343.0,0.04295]
[1763494454783,0.04563,93341.0,93340.0,0.00219803]
[1763494455391,0.04563,93341.0,93340.0,0.02400803]
[1763494455593,0.04563,93341.0,93340.0,0.00219803]
[1763494456094,0.04563,93341.0,93340.0,0.02400803]
[1763494456594,0.04563,93341.0,93340.0,0.00219803]
[1763494457193,0.04563,93341.0,93340.0,0.02400803]
[1763494457489,0.04563,93341.0,93340.0,0.04514803]
[1763494457692,0.04563,93341.0,93340.0,0.00219803]
[1763494458589,0.1528391,93334.0,93333.0,0.1187]
[1763494458786,0.1528391,93334.0,93333.0,0.16165]
[1763494459091,0.1528391,93334.0,93333.0,0.2688602]
[1763494459395,0.1528391,93334.0,93333.0,0.16165]
[1763494459781,0.04563,93332.0,93331.0,0.3608]
[1763494459986,0.04563,93332.0,93331.0,0.38261]
[1763494460580,0.04563,93332.0,93330.0,0.00219803]
[1763494460786,0.1528425,93331.0,93330.0,0.00219803]
[1763494462587,0.1528425,93331.0,93330.0,0.02484803]
[1763494462790,0.1528425,93331.0,93330.0,0.04695803]
[1763494463889,0.1528425,93331.0,93330.0,0.02484803]
[1763494464090,0.1528425,93331.0,93330.0,0.04695803]
[1763494465696,0.04563,93331.0,93330.0,0.04695803]
[1763494465890,0.30387,93331.0,93330.0,0.04695803]
[1763494466985,0.30387,93331.0,93330.0,0.00219803]
[1763494468504,0.30387,93331.0,93323.0,0.3608]
[1763494468505,0.1524306,93324.0,93323.0,0.38335]
[1763494468706,0.1524306,93324.0,93323.0,0.40575]
[1763494468994,0.152434,93321.0,93320.0,0.00219803]
[1763494469196,0.04521,93306.0,93305.0,0.04495]
[1763494469403,0.152457,93301.0,93300.0,0.00219803]
[1763494469803,0.152457,93301.0,93300.0,0.02474803]
[1763494470099,0.04521,93301.0,93300.0,0.02474803]
[1763494470691,0.04521,93301.0,93300.0,0.04714803]
[1763494471096,0.152449,93308.0,93307.0,0.04495]
[1763494471295,0.1072345,93312.0,93310.0,0.00219803]
[1763494471499,0.40601,93311.0,93310.0,0.04714803]
[1763494471805,0.40601,93311.0,93310.0,0.02474803]
[1763494473200,0.40701,93311.0,93310.0,0.04714803]
[1763494473906,0.40601,93311.0,93310.0,0.04714803]
[1763494474108,0.40601,93311.0,93310.0,0.00219803]
[1763494474304,0.04521,93297.0,93296.0,0.1649818]
[1763494475810,0.04521,93297.0,93296.0,0.04495]
[1763494476512,0.04521,93297.0,93295.0,0.4680532]
[1763494476513,0.05912,93296.0,93295.0,0.4680532]
[1763494476705,0.05912,93296.0,93295.0,0.3608]
[1763494477915,0.05912,93296.0,93290.0,0.00219803]
[1763494477916,0.1524639,93295.0,93294.0,0.02262728]
[1763494478303,0.1524639,93295.0,93294.0,7.728e-05]
[1763494478500,0.1524685,93291.0,93290.0,0.00219803]
[1763494479604,0.15254578,93291.0,93290.0,0.00219803]
[1763494479795,0.15254578,93291.0,93290.0,0.04714803]
[1763494479999,0.04528728,93291.0,93290.0,0.04714803]
[1763494481114,7.728e-05,93291.0,93290.0,0.04714803]
[1763494482110,0.02262728,93291.0,93290.0,0.04714803]
[1763494482302,0.04528728,93291.0,93290.0,0.00219803]
[1763494482699,0.40608728,93291.0,93290.0,0.00219803]
[1763494484417,0.1524731,93287.0,93286.0,0.04521799]
[1763494485619,0.1524731,93287.0,93286.0,0.02281799]
[1763494485817,0.1524731,93287.0,93286.0,0.00026799]
[1763494487329,0.1524731,93287.0,93286.0,0.02281799]
[1763494487526,0.1524731,93287.0,93286.0,0.04521799]
[1763494487724,0.04521,93287.0,93286.0,0.04521799]
[1763494488029,0.10733578,93291.0,93290.0,0.15440763]
[1763494488229,0.15254578,93291.0,93290.0,0.15440763]
[1763494488529,7.728e-05,93291.0,93290.0,0.15440763]
[1763494494923,0.00016074,93296.0,93295.0,0.1522039]
[1763494495127,0.1524468,93310.0,93309.0,0.04495]
[1763494495322,0.17860223,93310.0,93309.0,0.02255]
[1763494495528,0.152457,93301.0,93300.0,0.04495]
[1763494495722,0.152457,93301.0,93300.0,0.00219803]
[1763494497138,0.17863229,93301.0,93300.0,0.00219803]
[1763494498539,0.17863229,93301.0,93300.0,0.04768803]
[1763494499639,0.04872529,93301.0,93300.0,0.04768803]
[1763494500235,0.00016074,93310.0,93309.0,0.1518179]
[1763494500439,0.04476,93325.0,93312.0,0.01321]
[1763494500635,0.0231,93316.0,93315.0,0.04458]
[1763494500842,0.04476,93324.0,93323.0,0.04458]
[1763494501037,0.02620933,93324.0,93323.0,0.04458]
[1763494501435,0.04476,93328.0,93327.0,0.04458]
[1763494501738,0.00016074,93333.0,93332.0,0.1517915]
[1763494502043,0.02634183,93333.0,93332.0,0.1517915]
[1763494502338,0.15213104,93333.0,93332.0,0.04458]
[1763494503140,0.15313104,93333.0,93332.0,0.04458]
[1763494503542,0.02426074,93333.0,93332.0,0.04458]
[1763494503736,0.13147104,93333.0,93332.0,0.04458]
[1763494503932,0.15313104,93333.0,93332.0,0.04458]
[1763494504735,0.15213104,93333.0,93332.0,0.04458]
[1763494504936,0.13047104,93333.0,93332.0,0.04458]
[1763494505141,0.15213104,93333.0,93332.0,0.04458]
[1763494505336,0.15213104,93333.0,93332.0,0.02164]
[1763494505838,0.1519841,93321.0,93320.0,0.3608]
[1763494506044,0.1652441,93321.0,93320.0,0.36299803]
[1763494507244,0.1652441,93321.0,93320.0,0.00219803]
[1763494508637,0.1652441,93321.0,93309.0,0.3608]
[1763494508638,0.04476,93315.0,93309.0,0.3608]
[1763494508840,0.40556,93315.0,93298.0,0.3608]
[1763494509145,0.40556,93315.0,93301.0,0.1072464]
[1763494509441,0.40556,93315.0,93303.0,0.1072444]
[1763494509648,0.40556,93315.0,93314.0,0.02180074]
[1763494509850,0.40556,93315.0,93314.0,0.00016074]
[1763494510534,0.66384,93315.0,93314.0,0.02180074]
[1763494510847,0.66384,93315.0,93314.0,0.00016074]
[1763494511240,0.1520094,93299.0,93298.0,0.40538]
[1763494511543,0.1520094,93299.0,93298.0,0.3608]
[1763494512648,0.1520197,93290.0,93289.0,0.36096074]
[1763494512842,0.15421773,93290.0,93289.0,0.36096074]
[1763494513738,0.15421773,93290.0,93289.0,0.40554074]
[1763494513739,0.04695803,93290.0,93289.0,0.40554074]
[1763494514436,0.04476,93303.0,93302.0,0.1518253]
[1763494514640,0.10740034,93308.0,93307.0,0.1518202]
[1763494514641,0.04492074,93308.0,93307.0,0.1518202]
[1763494514943,0.04492074,93308.0,93307.0,0.04458]
[1763494515338,0.00016074,93308.0,93307.0,0.04458]
[1763494515946,0.00116074,93308.0,93307.0,0.04458]
[1763494517447,0.00016074,93308.0,93307.0,0.04458]
[1763494521440,0.04432074,93308.0,93307.0,0.04458]
[1763494521854,0.00016074,93308.0,93307.0,0.04458]
[1763494522445,0.1498314,93324.0,93323.0,0.04414]
[1763494523154,0.1498314,93324.0,93323.0,0.02125]
[1763494523360,0.1608341,93321.0,93320.0,0.00073203]
[1763494523756,0.1608341,93321.0,93320.0,0.04487203]
[1763494524359,0.1602141,93321.0,93320.0,0.00073203]
[1763494525146,0.04261,93321.0,93320.0,0.04487203]
[1763494527357,0.00016074,93330.0,93329.0,0.1510449]
[1763494527561,0.00016074,93330.0,93329.0,0.5118449]
[1763494527859,0.00235877,93330.0,93329.0,0.5118449]
[1763494528364,0.02396877,93330.0,93329.0,0.5118449]
[1763494528861,0.00235877,93330.0,93329.0,0.5118449]
[1763494529260,0.00016074,93330.0,93329.0,0.5118449]
[1763494530871,0.38241,93342.0,93341.0,0.1512512]
[1763494531164,0.02161,93342.0,93341.0,0.1512512]
[1763494532067,0.02261,93342.0,93341.0,0.1512512]
[1763494532269,0.04379,93342.0,93341.0,0.1512512]
[1763494532562,0.001,93342.0,93341.0,0.1512512]
[1763494533362,0.1071989,93343.0,93341.0,0.1512512]
[1763494533568,0.1288089,93343.0,93342.0,0.04405]
[1763494533870,0.1499889,93343.0,93342.0,0.04405]
[1763494534364,0.1499889,93343.0,93340.0,0.00073203]
[1763494534365,0.04279,93341.0,93340.0,0.00073203]
[1763494536770,0.04379,93341.0,93340.0,0.00073203]
[1763494536970,0.40459,93341.0,93340.0,0.00073203]
[1763494537361,0.1500005,93333.0,93332.0,0.04421074]
[1763494537961,0.1500005,93333.0,93332.0,0.00016074]
[1763494538663,0.1500005,93333.0,93332.0,0.02163074]
[1763494538862,0.1500005,93333.0,93332.0,0.00016074]
[1763494540168,0.1510005,93333.0,93332.0,0.00016074]
[1763494540572,0.1500005,93333.0,93332.0,0.00016074]
[1763494541767,0.5108005,93333.0,93332.0,0.00016074]
[1763494546077,0.53674687,93333.0,93332.0,0.00016074]
[1763494546277,0.53774687,93333.0,93332.0,0.00016074]
[1763494550681,0.53774687,93333.0,93332.0,0.12884234]
[1763494550682,0.5118005,93333.0,93332.0,0.12884234]
[1763494551069,0.5118005,93333.0,93332.0,0.00016074]
[1763494551677,0.40459,93333.0,93332.0,0.10737234]
[1763494551878,0.02261,93333.0,93332.0,0.15142234]
[1763494552075,0.04379,93333.0,93332.0,0.15142234]
[1763494552389,0.001,93333.0,93332.0,0.15142234]
[1763494552774,0.365444,93339.0,93338.0,0.04405]
[1763494552775,0.408234,93339.0,93338.0,0.04405]
[1763494552978,0.408234,93339.0,93338.0,0.02147]
[1763494553170,0.04279,93333.0,93332.0,0.04421074]
[1763494553480,0.04379,93333.0,93332.0,0.04421074]
[1763494553977,0.04279,93333.0,93332.0,0.04421074]
[1763494554184,0.04279,93333.0,93332.0,0.00016074]
[1763494555686,0.42955977,93333.0,93332.0,0.00016074]
[1763494556785,0.43055977,93333.0,93332.0,0.00016074]
[1763494560089,0.43055977,93333.0,93332.0,0.04348074]
[1763494560284,0.40359,93333.0,93332.0,0.04348074]
[1763494560484,0.40459,93333.0,93332.0,0.04348074]
[1763494560690,0.3618,93333.0,93332.0,0.04348074]
[1763494560983,0.001,93333.0,93332.0,0.40428074]
[1763494561488,0.30384,93350.0,93349.0,0.1505121]
[1763494561689,0.00219803,93350.0,93349.0,0.1505121]
[1763494562186,0.02495803,93350.0,93349.0,0.1505121]
[1763494562783,0.04775803,93350.0,93349.0,0.1505121]
[1763494563179,0.00219803,93350.0,93349.0,0.1505121]
[1763494564182,0.02495803,93350.0,93349.0,0.1505121]
[1763494564390,0.04775803,93350.0,93349.0,0.1505121]
[1763494565080,0.04775803,93350.0,93349.0,0.04332]
[1763494565991,0.04775803,93350.0,93349.0,0.1505121]
[1763494566376,0.00219803,93350.0,93349.0,0.1505121]
[1763494568693,0.04556,93368.0,93367.0,0.1504915]
[1763494568881,0.04556,93368.0,93367.0,0.04332]
[1763494569684,0.00219803,93370.0,93369.0,0.04332]
[1763494569885,0.10936603,93370.0,93369.0,0.04332]
[1763494570087,0.00016065,93377.0,93376.0,0.05652]
[1763494571791,0.04572065,93377.0,93376.0,0.04332]
[1763494572291,0.1527257,93372.0,93371.0,0.40412]
[1763494573797,0.1527257,93372.0,93371.0,0.3608]
[1763494573988,0.04556,93371.0,93370.0,0.00073203]
[1763494574187,0.4679657,93372.0,93358.0,0.04348065]
[1763494574188,0.1527407,93359.0,93358.0,0.04348065]
[1763494575284,0.04556,93359.0,93358.0,0.15066245]
[1763494575690,0.04556,93359.0,93358.0,0.04348065]
[1763494575990,0.02495803,93360.0,93359.0,0.04332]
[1763494576195,0.04775803,93360.0,93359.0,0.04332]
[1763494580497,0.00219803,93360.0,93359.0,0.04332]
[1763494581296,0.04825803,93360.0,93359.0,0.02135]
[1763494581495,0.04825803,93360.0,93359.0,0.04244]
[1763494582297,0.00219803,93360.0,93359.0,0.04244]
[1763494582895,0.5140262,93372.0,93371.0,0.1288369]
[1763494583894,0.5140262,93372.0,93371.0,0.02167]
[1763494584500,0.04606,93371.0,93370.0,0.00073203]
[1763494584799,0.1532372,93362.0,93361.0,0.1499382]
[1763494584999,0.1532372,93362.0,93361.0,0.04276]
[1763494585197,0.04606,93361.0,93360.0,0.00073203]
[1763494585391,0.04606,93361.0,93360.0,0.04349203]
[1763494586398,0.04606,93376.0,93375.0,0.1499223]
[1763494586598,0.00219803,93380.0,93376.0,0.05619]
[1763494586797,0.1071512,93385.0,93376.0,0.05619]
[1763494586999,0.10715,93386.0,93376.0,0.05619]
[1763494587398,0.36995,93392.0,93376.0,0.05619]
[1763494587699,0.15364065,93377.0,93376.0,0.04276]
[1763494587897,0.15364065,93377.0,93376.0,0.02167]
[1763494588102,0.15364065,93377.0,93374.0,0.3608]
[1763494588103,0.04515,93375.0,93374.0,0.38362]
[1763494588400,0.04515,93375.0,93374.0,0.40641]
[1763494589005,0.04515,93375.0,93374.0,0.3608]
[1763494589800,0.04615,93375.0,93374.0,0.3608]
[1763494590000,0.04615,93375.0,93370.0,0.00073203]
[1763494590001,0.04515,93371.0,93370.0,0.00073203]
[1763494590202,0.1523169,93371.0,93370.0,0.00073203]
[1763494590797,0.1523226,93366.0,93365.0,0.40641]
[1763494591199,0.1523307,93359.0,93358.0,0.04577065]
[1763494593404,0.04515,93359.0,93358.0,0.04577065]
[1763494595001,0.04515,93359.0,93358.0,0.00016065]
[1763494595407,0.04515,93359.0,93358.0,0.02298065]
[1763494595798,0.04515,93359.0,93358.0,0.00016065]
[1763494597403,0.04515,93359.0,93339.0,0.38362]
[1763494597404,0.00672,93344.0,93339.0,0.38362]
[1763494597705,0.1523525,93340.0,93339.0,0.3608]
[1763494598008,0.15455053,93340.0,93339.0,0.3608]
[1763494598506,0.1523617,93332.0,93331.0,0.38362]
[1763494598810,0.04515,93332.0,93331.0,0.5136228]
[1763494603614,0.3608,93341.0,93331.0,0.5136228]
[1763494603615,0.5131521,93341.0,93340.0,0.04561]
[1763494603916,0.3608,93341.0,93340.0,0.04561]
[1763494604118,0.40595,93341.0,93340.0,0.04561]
[1763494604908,0.40695,93341.0,93340.0,0.04561]
[1763494605312,0.04615,93341.0,93340.0,0.04561]
[1763494605513,0.25848065,93349.0,93348.0,0.1528033]
[1763494605707,0.30363065,93349.0,93348.0,0.04561]
[1763494605907,0.04531065,93349.0,93348.0,0.04561]
[1763494609715,0.00016065,93349.0,93348.0,0.04561]
[1763494609907,0.00016065,93349.0,93348.0,0.40641]
[1763494610417,0.1071572,93380.0,93348.0,0.40641]
[1763494610418,0.66427,93370.0,93369.0,0.04561]
[1763494610608,0.79925411,93370.0,93369.0,0.04561]
[1763494611013,0.77363613,93370.0,93369.0,0.04561]
[1763494611418,0.77463613,93370.0,93369.0,0.04561]
[1763494611615,0.77563613,93370.0,93369.0,0.02282]
[1763494611810,0.51731613,93370.0,93369.0,0.02282]
[1763494612625,0.1523284,93362.0,93361.0,0.04561]
[1763494612806,0.04515,93361.0,93360.0,0.00016065]
[1763494613012,0.30343,93361.0,93360.0,0.00016065]
[1763494614316,0.30443,93361.0,93360.0,0.00016065]
[1763494614818,0.30343,93361.0,93360.0,0.00016065]
[1763494615013,0.30443,93361.0,93360.0,0.00016065]
[1763494616321,0.30343,93361.0,93360.0,0.00016065]
[1763494616514,0.30443,93361.0,93360.0,0.02298065]
[1763494616715,0.30443,93361.0,93360.0,0.04577065]
[1763494619319,0.30439,93361.0,93360.0,0.04577065]
[1763494620019,0.30439,93361.0,93360.0,0.00016065]
[1763494620519,0.04615,93361.0,93360.0,0.00016065]
[1763494620724,0.1528112,93376.0,93375.0,0.0436]
[1763494620930,0.44980011,93376.0,93375.0,0.02226]
[1763494621120,0.1528227,93366.0,93365.0,0.5115731]
[1763494622021,0.1528227,93366.0,93365.0,0.4044]
[1763494622216,0.1528227,93366.0,93365.0,0.02226]
[1763494622412,0.04565,93361.0,93360.0,0.16464925]
[1763494622625,0.02332,93361.0,93360.0,0.16464925]
[1763494624120,0.04565,93361.0,93360.0,0.16464925]
[1763494626319,0.04565,93376.0,93375.0,0.1507623]
[1763494626818,0.04565,93376.0,93375.0,0.0436]
[1763494627930,0.04665,93376.0,93375.0,0.0436]
[1763494630317,0.04665,93376.0,93370.0,0.4044]
[1763494630318,0.1528169,93371.0,93370.0,0.4044]
[1763494630730,0.04565,93371.0,93370.0,0.4044]
[1763494631926,0.04581065,93379.0,93378.0,0.0436]
[1763494632125,0.15296845,93379.0,93378.0,0.1507589]
[1763494632719,0.04581065,93379.0,93378.0,0.1507589]
[1763494632925,0.00016065,93379.0,93378.0,0.5115589]
[1763494633637,0.04565,93391.0,93390.0,0.0436]
[1763494634733,0.04665,93391.0,93390.0,0.0436]
[1763494635834,0.04765,93391.0,93390.0,0.0436]
[1763494636533,0.002,93391.0,93390.0,0.4044]
[1763494636728,0.04765,93391.0,93390.0,0.4044]
[1763494636929,0.002,93391.0,93390.0,0.4044]
[1763494637139,0.15294495,93400.0,93399.0,0.0436]
[1763494637434,0.04800868,93400.0,93399.0,0.1507348]
[1763494637931,0.04800868,93400.0,93399.0,0.0436]
[1763494638334,0.05100868,93400.0,93399.0,0.0436]
[1763494638735,0.152794,93391.0,93390.0,0.3608]
[1763494639131,0.152794,93391.0,93390.0,0.38306]
[1763494639826,0.152794,93391.0,93390.0,0.4044]
[1763494640535,0.153794,93391.0,93390.0,0.4044]
[1763494640938,0.152794,93391.0,93390.0,0.4044]
[1763494641130,0.153794,93391.0,93390.0,0.4044]
[1763494641532,0.153794,93391.0,93390.0,0.0436]
[1763494641835,0.1519043,93382.0,93381.0,0.04467065]
[1763494642637,0.04475,93382.0,93381.0,0.04467065]
[1763494644632,0.1071536,93383.0,93381.0,0.04467065]
[1763494644834,0.02456803,93390.0,93389.0,0.04451]
[1763494645134,0.04694803,93390.0,93389.0,0.04451]
[1763494647034,0.01044,93401.0,93389.0,0.04451]
[1763494647035,0.04491065,93400.0,93399.0,0.1516448]
[1763494647231,0.04491065,93400.0,93399.0,0.02198]
[1763494647232,0.04710868,93400.0,93399.0,0.02198]
[1763494647441,0.04710868,93400.0,93399.0,0.04389]
[1763494648043,0.02472868,93400.0,93399.0,0.40469]
[1763494648234,0.00016065,93400.0,93399.0,0.40469]
[1763494648548,0.04402,93424.0,93423.0,0.04439]
[1763494649238,0.02243,93424.0,93423.0,0.04439]
[1763494649438,0.02243,93424.0,93422.0,0.3608]
[1763494649439,0.04402,93432.0,93431.0,0.04439]
[1763494649652,0.33644578,93432.0,93431.0,0.02248]
[1763494650041,0.04402,93425.0,93424.0,0.05821]
[1763494650242,0.04402,93425.0,93424.0,0.04439]
[1763494651446,0.02243,93425.0,93424.0,0.05821]
[1763494651650,0.04402,93425.0,93424.0,0.05821]
[1763494652252,0.04502,93425.0,93424.0,0.05821]
[1763494652454,0.04702,93425.0,93424.0,0.05821]
[1763494653045,0.04402,93423.0,93422.0,0.3608]
[1763494653444,0.04402,93415.0,93414.0,0.04455056]
[1763494654346,0.04402,93415.0,93414.0,0.00016056]
[1763494654550,0.04402,93397.0,93396.0,0.5123282]
[1763494655749,0.04402,93397.0,93396.0,0.40519]
[1763494656642,0.02243,93397.0,93396.0,0.40519]
[1763494656843,0.04621803,93400.0,93399.0,0.04439]
[1763494659654,0.02462803,93400.0,93399.0,0.04439]
[1763494659849,0.00219803,93400.0,93399.0,0.04439]
[1763494660246,0.00016056,93406.0,93405.0,0.1515179]
[1763494660445,0.00016056,93406.0,93405.0,0.5123179]
[1763494660644,0.04402,93422.0,93421.0,0.1514996]
[1763494660854,0.06945729,93422.0,93421.0,0.04439]
[1763494662753,0.07045729,93422.0,93421.0,0.04439]
[1763494662953,0.00219803,93420.0,93413.0,0.3608]
[1763494663159,0.04402,93414.0,93413.0,0.40519]
[1763494665357,0.06944567,93414.0,93413.0,0.40519]
[1763494665560,0.04402,93414.0,93413.0,0.40519]
[1763494666369,0.06944652,93414.0,93413.0,0.40519]
[1763494666558,0.3608,93424.0,93423.0,0.04439]
[1763494666760,0.02542685,93424.0,93423.0,0.1514973]
[1763494667061,0.04785685,93424.0,93423.0,0.1514973]
[1763494667265,0.02542685,93424.0,93423.0,0.1514973]
[1763494667665,0.02542685,93424.0,93422.0,0.3608]
[1763494667666,0.04412635,93431.0,93430.0,0.04439]
[1763494667964,0.06955243,93431.0,93430.0,0.04439]
[1763494668963,0.06955243,93431.0,93430.0,0.40519]
[1763494669159,0.07055243,93431.0,93430.0,0.40519]
[1763494669765,0.04402,93423.0,93422.0,0.02248]
[1763494670665,0.04402,93423.0,93422.0,0.04439]
[1763494671364,0.04502,93423.0,93422.0,0.04439]
[1763494672466,0.07045035,93423.0,93422.0,0.04439]
[1763494679572,0.0438,93419.0,93418.0,0.3608]
[1763494679775,0.06923035,93419.0,93418.0,0.38354]
[1763494679979,0.06923035,93419.0,93418.0,0.40678]
[1763494680165,0.0438,93419.0,93418.0,0.40678]
[1763494680972,0.0448,93419.0,93418.0,0.40678]
[1763494681177,0.0005745,93419.0,93418.0,0.40678]
[1763494681472,0.04390635,93431.0,93430.0,0.1530793]
[1763494681673,0.0693846,93431.0,93430.0,0.04598]
[1763494682678,0.0713846,93431.0,93430.0,0.04598]
[1763494684370,0.0438,93423.0,93422.0,0.05855]
[1763494685577,0.04490635,93431.0,93430.0,0.04598]
[1763494685880,0.0693963,93431.0,93430.0,0.04598]
[1763494687278,0.0693963,93431.0,93430.0,0.02274]
[1763494687574,0.00219803,93430.0,93420.0,0.11470347]
[1763494687877,0.00219803,93430.0,93406.0,0.19510797]
[1763494687878,0.0438,93423.0,93422.0,0.04598]
[1763494688575,0.0438,93423.0,93412.0,0.04614056]
[1763494688576,0.0438,93413.0,93412.0,0.04614056]
[1763494688770,0.0438,93413.0,93412.0,0.15326046]
[1763494689573,0.0438,93413.0,93412.0,0.04614056]
[1763494691382,0.06931238,93413.0,93412.0,0.00016056]
[1763494692482,0.32735238,93413.0,93412.0,0.00016056]
[1763494692986,0.43447118,93413.0,93412.0,0.00016056]
[1763494694076,0.43447118,93413.0,93412.0,0.04614056]
[1763494694476,0.43447118,93413.0,93412.0,0.02290056]
[1763494696083,0.43447118,93413.0,93412.0,0.00016056]
[1763494697083,0.43447118,93413.0,93412.0,0.02290056]
[1763494697484,0.3608,93421.0,93412.0,0.04614056]
[1763494697689,0.5117096,93421.0,93420.0,0.04598]
[1763494697889,0.79520785,93421.0,93420.0,0.04598]
[1763494698084,0.1509188,93413.0,93412.0,0.04614056]
[1763494705594,0.1509188,93413.0,93412.0,0.04321056]
[1763494706392,0.7704896,93421.0,93420.0,0.04305]
[1763494706588,0.79595444,93421.0,93420.0,0.04305]
[1763494707588,0.1518588,93413.0,93412.0,0.04506056]
[1763494710295,0.5126588,93413.0,93412.0,0.04506056]
[1763494710489,0.1519001,93377.0,93376.0,0.3608]
[1763494710687,0.1519001,93377.0,93348.0,0.06249552]
[1763494710688,0.04474,93367.0,93348.0,0.06249552]
[1763494710884,0.04474,93349.0,93348.0,0.05844]
[1763494711284,0.02314,93349.0,93348.0,0.05844]
[1763494711591,0.00016065,93358.0,93357.0,0.107183]
[1763494711790,0.00016065,93358.0,93357.0,0.512883]
[1763494713100,0.40554,93386.0,93385.0,0.0449]
[1763494713394,0.66406,93386.0,93385.0,0.0449]
[1763494714998,0.66506,93386.0,93385.0,0.0449]
[1763494715191,0.66606,93386.0,93385.0,0.0449]
[1763494715601,0.40654,93386.0,93385.0,0.0449]
[1763494715806,0.002,93386.0,93385.0,0.0449]
[1763494715992,0.002,93386.0,93385.0,0.4057]
[1763494716298,0.3608,93403.0,93402.0,0.0449]
[1763494716801,0.25856,93414.0,93402.0,0.0449]
[1763494716802,0.3033,93414.0,93413.0,0.0449]
[1763494717394,0.04474,93411.0,93410.0,0.05844]
[1763494718598,0.02314,93405.0,93404.0,0.04506065]
[1763494719297,0.00026765,93406.0,93405.0,0.0449]
[1763494719606,0.04500765,93406.0,93405.0,0.0449]
[1763494721002,0.04500765,93406.0,93405.0,0.02242]
[1763494721399,0.04474,93405.0,93404.0,0.00016065]
[1763494721598,0.04474,93391.0,93390.0,0.05844]
[1763494723711,0.3608,93393.0,93392.0,0.0449]
[1763494724795,0.00026765,93406.0,93405.0,0.0449]
[1763494726507,0.04500765,93406.0,93405.0,0.0449]
[1763494728812,0.04500765,93406.0,93405.0,0.02242]
[1763494729007,0.04474,93403.0,93402.0,0.05844]
[1763494729913,0.04474,93403.0,93402.0,0.0449]
[1763494730611,0.02314,93393.0,93392.0,0.4057]
[1763494731711,0.02314,93398.0,93397.0,0.02242]
[1763494731917,0.02314,93398.0,93397.0,0.0449]
[1763494733718,0.02314,93398.0,93397.0,0.1520371]
[1763494733923,0.02314,93398.0,93397.0,0.0449]
[1763494735515,0.00219803,93400.0,93399.0,0.0449]
[1763494735712,0.3608,93403.0,93402.0,0.05844]
[1763494735913,0.00026765,93406.0,93405.0,0.0449]
[1763494740020,0.3608,93432.0,93431.0,0.04389]
[1763494740325,0.39045687,93432.0,93431.0,0.04389]
[1763494740514,0.3608,93432.0,93431.0,0.04389]
[1763494741124,0.3608,93442.0,93441.0,0.04389]
[1763494741313,0.3904513,93442.0,93441.0,0.04389]
[1763494741514,0.00026754,93446.0,93445.0,0.1509721]
[1763494741717,0.40334,93460.0,93459.0,0.04389]
[1763494741916,0.43521472,93460.0,93459.0,0.04389]
[1763494742724,0.04254,93457.0,93456.0,0.02239]
[1763494742925,0.07221669,93457.0,93456.0,0.04389]
[1763494743119,0.07221669,93457.0,93456.0,0.05757]
[1763494743320,0.04254,93457.0,93456.0,0.05757]
[1763494743912,0.36599803,93460.0,93459.0,0.04389]
[1763494744117,0.003,93460.0,93459.0,0.04389]
[1763494744514,0.3608,93468.0,93467.0,0.1070569]
[1763494744716,0.3608,93477.0,93476.0,0.04389]
[1763494744922,0.39043177,93477.0,93476.0,0.04389]
[1763494745127,0.02963177,93477.0,93476.0,0.04389]
[1763494745326,0.40334,93488.0,93487.0,0.04389]
[1763494745532,0.43295018,93488.0,93487.0,0.04389]
[1763494746026,0.43295018,93488.0,93487.0,0.02239]
[1763494747324,0.04254,93481.0,93480.0,0.05757]
[1763494748527,0.40334,93488.0,93487.0,0.04389]
[1763494748825,0.04254,93488.0,93487.0,0.04389]
[1763494749021,0.04254,93508.0,93507.0,0.04389]
[1763494749218,0.07208855,93508.0,93507.0,0.04389]
[1763494750824,0.02954855,93508.0,93507.0,0.04389]
[1763494751028,0.40334,93525.0,93524.0,0.02239]
[1763494751228,0.02949302,93525.0,93524.0,0.04389]
[1763494751526,0.3608,93542.0,93525.0,0.1508805]
[1763494753222,0.3608,93542.0,93525.0,0.04389]
[1763494754128,0.3608,93542.0,93521.0,0.3608]
[1763494754129,0.38226,93542.0,93541.0,0.04389]
[1763494754438,0.25856,93547.0,93546.0,0.04389]
[1763494754731,0.3608,93558.0,93544.0,0.01368]
[1763494754732,0.00219803,93550.0,93549.0,0.04389]
[1763494754929,0.00219803,93550.0,93549.0,0.40469]
[1763494755528,0.3608,93558.0,93557.0,0.04389]
[1763494756529,0.40334,93558.0,93557.0,0.04389]
[1763494756925,0.3608,93558.0,93557.0,0.04389]
[1763494757324,0.04473803,93560.0,93559.0,0.04389]